[Event "*** MasterClass Titled Tuesday Blitz"]
[Site "Chess.com"]
[Date "2017.07.04"]
[Round "5"]
[White "Gabrielian_Artur"]
[Black "rasmussvane"]
[Result "1/2-1/2"]
[WhiteElo "2548"]
[BlackElo "2524"]
[TimeControl "180+2"]
[EndTime "14:06:36 PDT"]
[Termination "Game drawn by repetition"]

1. e4 {[%clk 0:03:01.9]} 1... c6 {[%clk 0:03:00.8]} 2. d3 {[%clk 0:03:01.1]}
2... d5 {[%clk 0:03:02]} 3. Nd2 {[%clk 0:03:01.7]} 3... e5 {[%clk 0:03:03.1]} 4.
Ngf3 {[%clk 0:03:02.2]} 4... Bd6 {[%clk 0:03:03.8]} 5. d4 {[%clk 0:03:03]} 5...
exd4 {[%clk 0:03:05.7]} 6. Bd3 {[%clk 0:03:03.7]} 6... c5 {[%clk 0:02:57.4]} 7.
exd5 {[%clk 0:03:02.9]} 7... Nf6 {[%clk 0:02:58.4]} 8. O-O {[%clk 0:03:01.4]}
8... O-O {[%clk 0:02:57.3]} 9. Nc4 {[%clk 0:02:46.1]} 9... Nxd5 {[%clk
0:02:46.4]} 10. c3 {[%clk 0:02:45.5]} 10... Nc6 {[%clk 0:02:43.3]} 11. cxd4
{[%clk 0:02:46.1]} 11... cxd4 {[%clk 0:02:42.5]} 12. Be4 {[%clk 0:02:35.8]}
12... Be6 {[%clk 0:02:18.1]} 13. Nxd6 {[%clk 0:02:34.1]} 13... Qxd6 {[%clk
0:02:18.4]} 14. Nxd4 {[%clk 0:02:33.6]} 14... Nxd4 {[%clk 0:02:13.5]} 15. Qxd4
{[%clk 0:02:33.8]} 15... Rfd8 {[%clk 0:02:00.7]} 16. Rd1 {[%clk 0:02:29.1]}
16... Qe7 {[%clk 0:01:45.6]} 17. Qe5 {[%clk 0:02:19.9]} 17... Nb6 {[%clk
0:01:05.2]} 18. Bf4 {[%clk 0:01:56.6]} 18... Nc4 {[%clk 0:01:04.2]} 19. Qh5
{[%clk 0:01:47.2]} 19... g6 {[%clk 0:01:00.6]} 20. Qe2 {[%clk 0:01:43.2]} 20...
Bf5 {[%clk 0:00:41.7]} 21. Qxc4 {[%clk 0:00:46.1]} 21... Qxe4 {[%clk 0:00:42.1]}
22. Qxe4 {[%clk 0:00:44.3]} 22... Bxe4 {[%clk 0:00:44]} 23. f3 {[%clk
0:00:44.8]} 23... Bc6 {[%clk 0:00:44.1]} 24. Kf2 {[%clk 0:00:42.8]} 24... f6
{[%clk 0:00:44.5]} 25. a3 {[%clk 0:00:42.5]} 25... Kf7 {[%clk 0:00:44.6]} 26. h4
{[%clk 0:00:43.2]} 26... Ke7 {[%clk 0:00:38.1]} 27. Be3 {[%clk 0:00:43.7]} 27...
a6 {[%clk 0:00:35.5]} 28. g4 {[%clk 0:00:43]} 28... Kf7 {[%clk 0:00:29.6]} 29.
Bb6 {[%clk 0:00:43]} 29... Rxd1 {[%clk 0:00:28.6]} 30. Rxd1 {[%clk 0:00:43.4]}
30... Re8 {[%clk 0:00:29.4]} 31. Rd2 {[%clk 0:00:38.1]} 31... Re5 {[%clk
0:00:29.6]} 32. Bd4 {[%clk 0:00:36.5]} 32... Rd5 {[%clk 0:00:29.5]} 33. Ke3
{[%clk 0:00:37.8]} 33... Rd7 {[%clk 0:00:28]} 34. g5 {[%clk 0:00:33.1]} 34...
fxg5 {[%clk 0:00:26.8]} 35. hxg5 {[%clk 0:00:34.1]} 35... Ke6 {[%clk 0:00:26.9]}
36. f4 {[%clk 0:00:32.4]} 36... Kf5 {[%clk 0:00:26.1]} 37. Be5 {[%clk
0:00:33.4]} 37... Rxd2 {[%clk 0:00:23.7]} 38. Kxd2 {[%clk 0:00:34.4]} 38... Ke4
{[%clk 0:00:22.7]} 39. Kc3 {[%clk 0:00:34.9]} 39... Kd5 {[%clk 0:00:22.9]} 40.
Kd3 {[%clk 0:00:35.2]} 40... Bb5+ {[%clk 0:00:22.8]} 41. Kc3 {[%clk 0:00:35.8]}
41... Bc6 {[%clk 0:00:23.1]} 42. Kd3 {[%clk 0:00:36.6]} 42... Bb5+ {[%clk
0:00:24.1]} 43. Kc3 {[%clk 0:00:37.7]} 43... Bc6 {[%clk 0:00:24.8]} 1/2-1/2

[Event "*** MasterClass Titled Tuesday Blitz"]
[Site "Chess.com"]
[Date "2017.07.04"]
[Round "5"]
[White "merillium"]
[Black "Me_ch_an"]
[Result "1-0"]
[WhiteElo "2337"]
[BlackElo "2250"]
[TimeControl "180+2"]
[EndTime "14:06:40 PDT"]
[Termination "merillium won by resignation"]

1. c4 {[%clk 0:03:01.9]} 1... e5 {[%clk 0:03:00.5]} 2. g3 {[%clk 0:03:02.9]}
2... Nc6 {[%clk 0:03:01.5]} 3. Bg2 {[%clk 0:03:03.8]} 3... d6 {[%clk 0:03:02.6]}
4. Nc3 {[%clk 0:03:04.2]} 4... g6 {[%clk 0:03:03.7]} 5. Rb1 {[%clk 0:03:01.5]}
5... Bg7 {[%clk 0:03:04.8]} 6. b4 {[%clk 0:03:02.2]} 6... Nge7 {[%clk
0:02:55.2]} 7. b5 {[%clk 0:03:01.2]} 7... Nd4 {[%clk 0:02:55.9]} 8. e3 {[%clk
0:03:01.5]} 8... Ne6 {[%clk 0:02:56.8]} 9. Nge2 {[%clk 0:03:01.1]} 9... O-O
{[%clk 0:02:56.7]} 10. O-O {[%clk 0:03:00.6]} 10... f5 {[%clk 0:02:49.5]} 11. d3
{[%clk 0:02:59]} 11... g5 {[%clk 0:02:46.1]} 12. f4 {[%clk 0:02:59.5]} 12...
exf4 {[%clk 0:02:45.2]} 13. gxf4 {[%clk 0:03:00.4]} 13... g4 {[%clk 0:02:45.6]}
14. Bb2 {[%clk 0:02:55.6]} 14... Ng6 {[%clk 0:02:33.6]} 15. Ng3 {[%clk
0:02:44.1]} 15... Nh4 {[%clk 0:02:30.2]} 16. Bh1 {[%clk 0:02:45]} 16... Qe8
{[%clk 0:02:28.4]} 17. Qe2 {[%clk 0:02:40.1]} 17... Kh8 {[%clk 0:02:20.1]} 18.
Nd5 {[%clk 0:02:37.8]} 18... Qf7 {[%clk 0:01:50.4]} 19. Bxg7+ {[%clk 0:02:26.1]}
19... Nxg7 {[%clk 0:01:44.7]} 20. Qb2 {[%clk 0:02:22.4]} 20... Be6 {[%clk
0:01:41.4]} 21. Rbe1 {[%clk 0:02:13.5]} 21... c6 {[%clk 0:01:32.7]} 22. Nc3
{[%clk 0:02:14.1]} 22... Rac8 {[%clk 0:01:32.1]} 23. a4 {[%clk 0:02:12.3]} 23...
cxb5 {[%clk 0:01:31.5]} 24. Nxb5 {[%clk 0:02:09]} 24... Rfd8 {[%clk 0:01:10.7]}
25. Nxa7 {[%clk 0:02:08.1]} 25... Rc7 {[%clk 0:00:57.8]} 26. Nb5 {[%clk
0:02:08.3]} 26... Rcd7 {[%clk 0:00:58.7]} 27. Qd4 {[%clk 0:02:04.8]} 27... d5
{[%clk 0:00:58.4]} 28. c5 {[%clk 0:02:05.8]} 28... Kg8 {[%clk 0:00:53.6]} 29.
Nd6 {[%clk 0:02:05.8]} 29... Qg6 {[%clk 0:00:53.1]} 30. Rb1 {[%clk 0:01:54.9]}
30... Nh5 {[%clk 0:00:45.8]} 31. Rxb7 {[%clk 0:01:45.2]} 31... Nxg3 {[%clk
0:00:37.8]} 32. hxg3 {[%clk 0:01:45.8]} 32... Nf3+ {[%clk 0:00:38.9]} 33. Bxf3
{[%clk 0:01:46.4]} 33... gxf3 {[%clk 0:00:40.8]} 34. Rxf3 {[%clk 0:01:39.2]}
34... Qg4 {[%clk 0:00:41.9]} 35. Kg2 {[%clk 0:01:40.1]} 35... Rxb7 {[%clk
0:00:37.3]} 36. Nxb7 {[%clk 0:01:40.4]} 36... Rc8 {[%clk 0:00:20.1]} 37. Qe5
{[%clk 0:01:38.9]} 37... Qg6 {[%clk 0:00:16.8]} 38. Rf2 {[%clk 0:01:38.9]} 38...
Re8 {[%clk 0:00:06.6]} 39. Nd6 {[%clk 0:01:36.1]} 39... Rb8 {[%clk 0:00:05.4]}
40. c6 {[%clk 0:01:36.9]} 40... Rb1 {[%clk 0:00:05.3]} 41. c7 {[%clk 0:01:35]}
41... Qh6 {[%clk 0:00:05.1]} 42. Qxe6+ {[%clk 0:01:35.7]} 42... Qxe6 {[%clk
0:00:03.9]} 43. c8=Q+ {[%clk 0:01:36.3]} 43... Qxc8 {[%clk 0:00:05.5]} 44. Nxc8
{[%clk 0:01:37.6]} 44... Rd1 {[%clk 0:00:05.5]} 45. Ne7+ {[%clk 0:01:37.9]}
45... Kf7 {[%clk 0:00:04.7]} 46. Nxf5 {[%clk 0:01:38.3]} 46... Rxd3 {[%clk
0:00:05.9]} 47. Ra2 {[%clk 0:01:38.8]} 47... Kf6 {[%clk 0:00:03.6]} 48. g4
{[%clk 0:01:39.2]} 48... h5 {[%clk 0:00:04]} 49. Ng3 {[%clk 0:01:38.1]} 49...
hxg4 {[%clk 0:00:04.6]} 50. a5 {[%clk 0:01:39.1]} 50... Rb3 {[%clk 0:00:05.7]}
51. a6 {[%clk 0:01:39.4]} 51... Rb8 {[%clk 0:00:07.2]} 52. a7 {[%clk 0:01:38.8]}
52... Ra8 {[%clk 0:00:08.8]} 53. Ne2 {[%clk 0:01:39.6]} 53... Kf5 {[%clk
0:00:09.2]} 54. Nc3 {[%clk 0:01:38]} 54... d4 {[%clk 0:00:09.1]} 55. exd4 {[%clk
0:01:38.1]} 55... Kxf4 {[%clk 0:00:10.4]} 56. Nb5 {[%clk 0:01:39.4]} 56... Ke4
{[%clk 0:00:10.7]} 57. Nc7 {[%clk 0:01:40.1]} 57... Rxa7 {[%clk 0:00:11.7]} 58.
Rxa7 {[%clk 0:01:41.9]} 58... Kxd4 {[%clk 0:00:12.8]} 59. Kg3 {[%clk 0:01:42.6]}
1-0

[Event "*** MasterClass Titled Tuesday Blitz"]
[Site "Chess.com"]
[Date "2017.07.04"]
[Round "5"]
[White "micfel"]
[Black "peteseeger"]
[Result "1/2-1/2"]
[WhiteElo "2172"]
[BlackElo "2146"]
[TimeControl "180+2"]
[EndTime "14:06:41 PDT"]
[Termination "Game drawn - insufficient material"]

1. e4 {[%clk 0:02:50.7]} 1... g6 {[%clk 0:03:00.1]} 2. d4 {[%clk 0:02:51.2]}
2... Bg7 {[%clk 0:03:01.1]} 3. Nc3 {[%clk 0:02:51.7]} 3... c6 {[%clk 0:03:01.7]}
4. Nf3 {[%clk 0:02:52.3]} 4... d6 {[%clk 0:03:01.3]} 5. Bc4 {[%clk 0:02:52.8]}
5... b5 {[%clk 0:02:58.3]} 6. Bb3 {[%clk 0:02:52.9]} 6... a5 {[%clk 0:02:59]} 7.
a4 {[%clk 0:02:53.3]} 7... b4 {[%clk 0:02:58.6]} 8. Ne2 {[%clk 0:02:53.8]} 8...
Ba6 {[%clk 0:02:59]} 9. O-O {[%clk 0:02:51.9]} 9... Nf6 {[%clk 0:02:47.1]} 10.
e5 {[%clk 0:02:52.4]} 10... dxe5 {[%clk 0:02:43.2]} 11. Nxe5 {[%clk 0:02:52.6]}
11... O-O {[%clk 0:02:43]} 12. Re1 {[%clk 0:02:52.8]} 12... c5 {[%clk
0:02:31.8]} 13. Be3 {[%clk 0:02:44.4]} 13... Nbd7 {[%clk 0:02:14.5]} 14. Nc6
{[%clk 0:02:43.1]} 14... Qe8 {[%clk 0:02:14.6]} 15. dxc5 {[%clk 0:02:43.2]}
15... Ng4 {[%clk 0:02:06]} 16. Bg5 {[%clk 0:02:38.3]} 16... Nxc5 {[%clk
0:01:46.3]} 17. Nxe7+ {[%clk 0:02:35.5]} 17... Kh8 {[%clk 0:01:47]} 18. Ng3
{[%clk 0:02:30]} 18... Qd7 {[%clk 0:01:38.9]} 19. Qxd7 {[%clk 0:02:26.2]} 19...
Nxd7 {[%clk 0:01:38]} 20. h3 {[%clk 0:02:26.5]} 20... Nge5 {[%clk 0:01:29.8]}
21. Bd5 {[%clk 0:02:24.8]} 21... Rae8 {[%clk 0:01:23.1]} 22. f4 {[%clk
0:02:19.5]} 22... Nc4 {[%clk 0:01:19.5]} 23. Nc6 {[%clk 0:02:14.9]} 23... Bxb2
{[%clk 0:01:04.8]} 24. Rab1 {[%clk 0:02:12.2]} 24... Bc3 {[%clk 0:01:05.5]} 25.
Rxe8 {[%clk 0:02:11.9]} 25... Rxe8 {[%clk 0:01:06.1]} 26. Bxf7 {[%clk 0:02:12]}
26... Rf8 {[%clk 0:00:45.3]} 27. Bxc4 {[%clk 0:02:10.7]} 27... Bxc4 {[%clk
0:00:45.8]} 28. Nxa5 {[%clk 0:02:11.2]} 28... Ba6 {[%clk 0:00:44.4]} 29. Nc6
{[%clk 0:02:10.1]} 29... Nc5 {[%clk 0:00:44]} 30. Nxb4 {[%clk 0:02:09.4]} 30...
Rb8 {[%clk 0:00:36.6]} 31. Be7 {[%clk 0:02:05.2]} 31... Rxb4 {[%clk 0:00:34.3]}
32. Rxb4 {[%clk 0:02:04.5]} 32... Bxb4 {[%clk 0:00:34.8]} 33. Ne4 {[%clk
0:02:05.2]} 33... Nxe4 {[%clk 0:00:34.4]} 34. Bxb4 {[%clk 0:02:05.8]} 34... Kg7
{[%clk 0:00:35.2]} 35. g4 {[%clk 0:02:04.2]} 35... Kf7 {[%clk 0:00:34.5]} 36.
Kg2 {[%clk 0:02:05]} 36... Ke6 {[%clk 0:00:35]} 37. Kf3 {[%clk 0:02:05.6]} 37...
Kd5 {[%clk 0:00:34.1]} 38. Ke3 {[%clk 0:02:06.4]} 38... Nd6 {[%clk 0:00:32.9]}
39. Bxd6 {[%clk 0:02:06.3]} 39... Kxd6 {[%clk 0:00:33.5]} 40. h4 {[%clk
0:02:01.6]} 40... Kd5 {[%clk 0:00:33.6]} 41. a5 {[%clk 0:02:01.7]} 41... Bc8
{[%clk 0:00:32.2]} 42. Kf3 {[%clk 0:02:00.1]} 42... Kd4 {[%clk 0:00:31.8]} 43.
f5 {[%clk 0:01:56.5]} 43... gxf5 {[%clk 0:00:31.9]} 44. gxf5 {[%clk 0:01:57.3]}
44... Bxf5 {[%clk 0:00:32.1]} 45. a6 {[%clk 0:01:57.6]} 45... Bxc2 {[%clk
0:00:31]} 46. a7 {[%clk 0:01:55.8]} 46... Be4+ {[%clk 0:00:28]} 47. Kf4 {[%clk
0:01:55.2]} 47... Kd3 {[%clk 0:00:28.6]} 48. Kg5 {[%clk 0:01:55.7]} 48... Ke3
{[%clk 0:00:29.4]} 49. Kh6 {[%clk 0:01:56.5]} 49... Kf4 {[%clk 0:00:29.4]} 50.
a8=Q {[%clk 0:01:55.7]} 50... Bxa8 {[%clk 0:00:29.7]} 51. Kxh7 {[%clk
0:01:56.6]} 51... Kg4 {[%clk 0:00:31.1]} 52. h5 {[%clk 0:01:57.1]} 52... Kxh5
{[%clk 0:00:32.4]} 1/2-1/2

[Event "*** MasterClass Titled Tuesday Blitz"]
[Site "Chess.com"]
[Date "2017.07.04"]
[Round "5"]
[White "kleinebeer98"]
[Black "stalyansky"]
[Result "1-0"]
[WhiteElo "2430"]
[BlackElo "2240"]
[TimeControl "180+2"]
[EndTime "14:06:51 PDT"]
[Termination "kleinebeer98 won by resignation"]

1. e4 {[%clk 0:03:01.9]} 1... e5 {[%clk 0:03:00.7]} 2. Nf3 {[%clk 0:03:02.6]}
2... Nc6 {[%clk 0:03:02.1]} 3. Nc3 {[%clk 0:03:03.4]} 3... Nf6 {[%clk
0:03:02.5]} 4. h3 {[%clk 0:03:04.5]} 4... d5 {[%clk 0:02:52.1]} 5. exd5 {[%clk
0:03:06.4]} 5... Nxd5 {[%clk 0:02:52.6]} 6. Bb5 {[%clk 0:03:07.7]} 6... Nxc3
{[%clk 0:02:52.4]} 7. bxc3 {[%clk 0:03:09.6]} 7... Bd6 {[%clk 0:02:53.1]} 8. O-O
{[%clk 0:03:10.4]} 8... O-O {[%clk 0:02:53.9]} 9. Re1 {[%clk 0:03:03.8]} 9...
Qf6 {[%clk 0:02:29.6]} 10. d4 {[%clk 0:02:57.8]} 10... exd4 {[%clk 0:02:23]} 11.
cxd4 {[%clk 0:02:59.7]} 11... Bf5 {[%clk 0:02:14.1]} 12. c3 {[%clk 0:02:57.1]}
12... h6 {[%clk 0:02:03.6]} 13. Bd3 {[%clk 0:02:50.3]} 13... Ne7 {[%clk
0:02:02.2]} 14. Rb1 {[%clk 0:02:49.8]} 14... b6 {[%clk 0:01:36.2]} 15. a4 {[%clk
0:02:45.3]} 15... c5 {[%clk 0:01:31.6]} 16. Be3 {[%clk 0:02:40.6]} 16... Rad8
{[%clk 0:01:29.9]} 17. a5 {[%clk 0:02:38]} 17... bxa5 {[%clk 0:01:21.7]} 18. Rb7
{[%clk 0:02:13.6]} 18... Nd5 {[%clk 0:01:17.7]} 19. Qc2 {[%clk 0:02:02]} 19...
Bxd3 {[%clk 0:01:01.6]} 20. Qxd3 {[%clk 0:02:03.9]} 20... Rfe8 {[%clk
0:01:01.1]} 21. Rxa7 {[%clk 0:01:54.1]} 21... Nf4 {[%clk 0:00:59.3]} 22. Qd1
{[%clk 0:01:43.7]} 22... cxd4 {[%clk 0:00:55.2]} 23. cxd4 {[%clk 0:01:33.9]}
23... Bb4 {[%clk 0:00:52.3]} 24. Rf1 {[%clk 0:01:32.7]} 24... Nd5 {[%clk
0:00:48.4]} 25. Ne5 {[%clk 0:01:25.7]} 25... Qb6 {[%clk 0:00:30.9]} 26. Rd7
{[%clk 0:00:57.3]} 26... Rxd7 {[%clk 0:00:27.9]} 27. Nxd7 {[%clk 0:00:59.2]}
27... Qa7 {[%clk 0:00:18.4]} 28. Qg4 {[%clk 0:00:53.5]} 28... Nxe3 {[%clk
0:00:14.7]} 29. fxe3 {[%clk 0:00:54.4]} 29... Rxe3 {[%clk 0:00:05.2]} 30. Nf6+
{[%clk 0:00:55.2]} 30... Kf8 {[%clk 0:00:06.4]} 31. Qc8+ {[%clk 0:00:56.2]}
31... Ke7 {[%clk 0:00:07.2]} 32. Qe8+ {[%clk 0:00:55.8]} 32... Kd6 {[%clk
0:00:07]} 33. Qxe3 {[%clk 0:00:57.7]} 33... gxf6 {[%clk 0:00:08]} 34. Rxf6+
{[%clk 0:00:59.6]} 34... Kd5 {[%clk 0:00:08.9]} 35. Qf3+ {[%clk 0:00:51.3]}
35... Kc4 {[%clk 0:00:07.8]} 36. Qe2+ {[%clk 0:00:43.3]} 36... Kb3 {[%clk
0:00:04.8]} 37. Rf3+ {[%clk 0:00:40.8]} 37... Ka4 {[%clk 0:00:05.6]} 38. Qc2+
{[%clk 0:00:41.6]} 38... Kb5 {[%clk 0:00:06.1]} 39. Rf5+ {[%clk 0:00:43.5]}
39... Kb6 {[%clk 0:00:06.2]} 40. Rf6+ {[%clk 0:00:44.7]} 1-0

[Event "*** MasterClass Titled Tuesday Blitz"]
[Site "Chess.com"]
[Date "2017.07.04"]
[Round "5"]
[White "escher"]
[Black "kharov2001"]
[Result "1-0"]
[WhiteElo "2041"]
[BlackElo "2042"]
[TimeControl "180+2"]
[EndTime "14:06:54 PDT"]
[Termination "escher won by checkmate"]

1. e4 {[%clk 0:03:02]} 1... e5 {[%clk 0:03:00.3]} 2. Nf3 {[%clk 0:03:02.3]} 2...
Nc6 {[%clk 0:03:01.6]} 3. d4 {[%clk 0:03:03]} 3... exd4 {[%clk 0:03:02.1]} 4.
Nxd4 {[%clk 0:03:04.1]} 4... Nf6 {[%clk 0:03:02.5]} 5. Nxc6 {[%clk 0:03:05.4]}
5... bxc6 {[%clk 0:03:03.4]} 6. e5 {[%clk 0:03:06.8]} 6... Qe7 {[%clk
0:03:04.1]} 7. Qe2 {[%clk 0:03:06.5]} 7... Nd5 {[%clk 0:03:04.8]} 8. c4 {[%clk
0:03:07.7]} 8... Nb6 {[%clk 0:03:05.5]} 9. Nc3 {[%clk 0:03:06.7]} 9... g6 {[%clk
0:03:04.4]} 10. f4 {[%clk 0:02:53.3]} 10... Bg7 {[%clk 0:03:03.7]} 11. g3 {[%clk
0:02:43.7]} 11... O-O {[%clk 0:03:02.5]} 12. Bg2 {[%clk 0:02:43.5]} 12... Qe6
{[%clk 0:02:54.2]} 13. b3 {[%clk 0:02:19.5]} 13... a5 {[%clk 0:02:54.1]} 14. O-O
{[%clk 0:02:11.8]} 14... a4 {[%clk 0:02:54.4]} 15. Bb2 {[%clk 0:02:11.4]} 15...
f6 {[%clk 0:02:44.6]} 16. exf6 {[%clk 0:01:44.9]} 16... Qxf6 {[%clk 0:02:29.1]}
17. Nxa4 {[%clk 0:01:41.3]} 17... Qf7 {[%clk 0:02:17.7]} 18. Bxg7 {[%clk
0:01:30.8]} 18... Qxg7 {[%clk 0:02:13.5]} 19. Nc5 {[%clk 0:01:24.8]} 19... d5
{[%clk 0:01:54.6]} 20. cxd5 {[%clk 0:01:19]} 20... cxd5 {[%clk 0:01:51.4]} 21.
Rad1 {[%clk 0:01:09.1]} 21... c6 {[%clk 0:01:30.8]} 22. a4 {[%clk 0:00:57.8]}
22... Bf5 {[%clk 0:01:23.5]} 23. Rfe1 {[%clk 0:00:57.4]} 23... Qc3 {[%clk
0:01:07.3]} 24. Rc1 {[%clk 0:00:52.2]} 24... Qd4+ {[%clk 0:01:04.9]} 25. Kh1
{[%clk 0:00:41.7]} 25... Rad8 {[%clk 0:00:50]} 26. Ne6 {[%clk 0:00:39.8]} 26...
Bxe6 {[%clk 0:00:47.3]} 27. Qxe6+ {[%clk 0:00:41.1]} 27... Kg7 {[%clk
0:00:46.6]} 28. Qe7+ {[%clk 0:00:39.7]} 28... Kg8 {[%clk 0:00:46.2]} 29. Rxc6
{[%clk 0:00:37.2]} 29... Qf2 {[%clk 0:00:37.8]} 30. Qe6+ {[%clk 0:00:36.1]}
30... Rf7 {[%clk 0:00:34.2]} 31. Rxb6 {[%clk 0:00:33.3]} 31... d4 {[%clk
0:00:33.4]} 32. Rb7 {[%clk 0:00:30.5]} 32... Rf8 {[%clk 0:00:33.6]} 33. Bd5
{[%clk 0:00:27.7]} 33... d3 {[%clk 0:00:33.3]} 34. Rxf7 {[%clk 0:00:26.3]} 34...
d2 {[%clk 0:00:20.8]} 35. Rxf8+ {[%clk 0:00:25.7]} 35... Kg7 {[%clk 0:00:21.7]}
36. Qf6+ {[%clk 0:00:21.4]} 36... Kh6 {[%clk 0:00:22.4]} 37. Qh4+ {[%clk
0:00:22.4]} 37... Kg7 {[%clk 0:00:21.1]} 38. Rf7+ {[%clk 0:00:23.5]} 38... Kg8
{[%clk 0:00:20.1]} 39. Re8# {[%clk 0:00:23.8]} 1-0

[Event "*** MasterClass Titled Tuesday Blitz"]
[Site "Chess.com"]
[Date "2017.07.04"]
[Round "5"]
[White "Bad4life"]
[Black "AndrewDGreen"]
[Result "1-0"]
[WhiteElo "2275"]
[BlackElo "2170"]
[TimeControl "180+2"]
[EndTime "14:07:01 PDT"]
[Termination "Bad4life won by checkmate"]

1. e4 {[%clk 0:03:01.9]} 1... Nf6 {[%clk 0:02:59.5]} 2. e5 {[%clk 0:03:02.7]}
2... Nd5 {[%clk 0:03:00.2]} 3. d4 {[%clk 0:03:01.1]} 3... d6 {[%clk 0:03:01.1]}
4. Nf3 {[%clk 0:03:02.2]} 4... dxe5 {[%clk 0:03:01.7]} 5. Nxe5 {[%clk
0:03:02.9]} 5... c6 {[%clk 0:03:02.4]} 6. Be2 {[%clk 0:03:02.1]} 6... Bf5 {[%clk
0:03:02.5]} 7. O-O {[%clk 0:03:02.7]} 7... Nd7 {[%clk 0:03:03.6]} 8. Nf3 {[%clk
0:03:03.5]} 8... e6 {[%clk 0:03:03.7]} 9. a3 {[%clk 0:03:04.8]} 9... Bd6 {[%clk
0:03:02.9]} 10. c4 {[%clk 0:03:05.7]} 10... Nf4 {[%clk 0:03:01.8]} 11. Nc3
{[%clk 0:03:02.1]} 11... O-O {[%clk 0:02:57.7]} 12. Re1 {[%clk 0:03:01.6]} 12...
Nxe2+ {[%clk 0:02:57.3]} 13. Qxe2 {[%clk 0:03:00.5]} 13... Re8 {[%clk 0:02:54]}
14. b4 {[%clk 0:02:59.5]} 14... e5 {[%clk 0:02:48.9]} 15. Bg5 {[%clk 0:02:55.5]}
15... Qc7 {[%clk 0:02:13.9]} 16. c5 {[%clk 0:02:49.3]} 16... Bf8 {[%clk
0:02:10.8]} 17. dxe5 {[%clk 0:02:46.9]} 17... Bg4 {[%clk 0:01:53.7]} 18. Bf4
{[%clk 0:02:35.5]} 18... Bxf3 {[%clk 0:01:50]} 19. Qxf3 {[%clk 0:02:31.8]} 19...
Nxe5 {[%clk 0:01:41.3]} 20. Qg3 {[%clk 0:02:33.1]} 20... f6 {[%clk 0:01:41.7]}
21. Ne4 {[%clk 0:02:31.8]} 21... Qf7 {[%clk 0:01:35]} 22. Rad1 {[%clk
0:02:29.1]} 22... Rad8 {[%clk 0:01:28.1]} 23. Bxe5 {[%clk 0:02:25.1]} 23... Rxd1
{[%clk 0:01:27.4]} 24. Rxd1 {[%clk 0:02:26.4]} 24... Rxe5 {[%clk 0:01:27.8]} 25.
f3 {[%clk 0:02:19]} 25... Rd5 {[%clk 0:01:24.4]} 26. Re1 {[%clk 0:02:15.2]}
26... b6 {[%clk 0:00:47.6]} 27. Rc1 {[%clk 0:02:05.3]} 27... bxc5 {[%clk
0:00:41.1]} 28. bxc5 {[%clk 0:02:06.4]} 28... Kh8 {[%clk 0:00:21.2]} 29. Qb8
{[%clk 0:02:02.1]} 29... h6 {[%clk 0:00:08.9]} 30. Nd6 {[%clk 0:01:59.6]} 30...
Qg8 {[%clk 0:00:06.5]} 31. Qc7 {[%clk 0:00:46.6]} 31... Bxd6 {[%clk 0:00:04]}
32. cxd6 {[%clk 0:00:47.8]} 32... Qe6 {[%clk 0:00:05.4]} 33. Qxc6 {[%clk
0:00:42.2]} 33... Qe3+ {[%clk 0:00:05.4]} 34. Kh1 {[%clk 0:00:42]} 34... Qd4
{[%clk 0:00:06]} 35. Qc8+ {[%clk 0:00:37.2]} 35... Kh7 {[%clk 0:00:06.5]} 36.
Qc2+ {[%clk 0:00:38.2]} 36... Kh8 {[%clk 0:00:07.3]} 37. Re1 {[%clk 0:00:30.6]}
37... f5 {[%clk 0:00:08.2]} 38. Qc8+ {[%clk 0:00:30.5]} 38... Kh7 {[%clk
0:00:08.6]} 39. h3 {[%clk 0:00:23.3]} 39... Rxd6 {[%clk 0:00:09.3]} 40. Qxf5+
{[%clk 0:00:24.2]} 40... Kg8 {[%clk 0:00:06.6]} 41. Re8# {[%clk 0:00:23.4]} 1-0

[Event "*** MasterClass Titled Tuesday Blitz"]
[Site "Chess.com"]
[Date "2017.07.04"]
[Round "5"]
[White "improve_every_day"]
[Black "TeukkaSalama"]
[Result "0-1"]
[WhiteElo "1960"]
[BlackElo "2078"]
[TimeControl "180+2"]
[EndTime "14:07:11 PDT"]
[Termination "TeukkaSalama won by checkmate"]

1. e4 {[%clk 0:03:01.9]} 1... c5 {[%clk 0:03:00]} 2. Nf3 {[%clk 0:03:03]} 2...
Nf6 {[%clk 0:03:00.7]} 3. e5 {[%clk 0:02:59.4]} 3... Nd5 {[%clk 0:03:01.4]} 4.
Nc3 {[%clk 0:02:59.3]} 4... e6 {[%clk 0:03:02.4]} 5. Nxd5 {[%clk 0:02:54.9]}
5... exd5 {[%clk 0:03:04.3]} 6. d4 {[%clk 0:02:56.4]} 6... Nc6 {[%clk
0:03:05.7]} 7. Bb5 {[%clk 0:02:54.1]} 7... Qa5+ {[%clk 0:03:03.1]} 8. Bd2 {[%clk
0:02:36]} 8... Qxb5 {[%clk 0:03:03.3]} 9. a4 {[%clk 0:02:33.5]} 9... Qb6 {[%clk
0:02:56.2]} 10. a5 {[%clk 0:02:30.2]} 10... Qc7 {[%clk 0:02:56.5]} 11. c4 {[%clk
0:02:27.5]} 11... dxc4 {[%clk 0:02:50]} 12. d5 {[%clk 0:02:23.9]} 12... Nd4
{[%clk 0:02:23.1]} 13. O-O {[%clk 0:02:13.4]} 13... d6 {[%clk 0:02:08.9]} 14.
exd6 {[%clk 0:01:48.3]} 14... Bxd6 {[%clk 0:02:08.4]} 15. Re1+ {[%clk
0:01:42.5]} 15... Kf8 {[%clk 0:02:05.8]} 16. Nxd4 {[%clk 0:01:21.7]} 16... cxd4
{[%clk 0:02:05.1]} 17. Qa4 {[%clk 0:01:22.4]} 17... Bd7 {[%clk 0:02:03.3]} 18.
Qc2 {[%clk 0:00:59.3]} 18... Bxh2+ {[%clk 0:01:56.3]} 19. Kh1 {[%clk 0:00:59.9]}
19... Bd6 {[%clk 0:01:55.6]} 20. Qe4 {[%clk 0:00:56.5]} 20... c3 {[%clk
0:01:31.8]} 21. bxc3 {[%clk 0:00:38.1]} 21... dxc3 {[%clk 0:01:29.8]} 22. Rec1
{[%clk 0:00:24.2]} 22... Re8 {[%clk 0:01:24.5]} 23. Qd4 {[%clk 0:00:22.4]} 23...
Be5 {[%clk 0:01:06.3]} 24. Qb4+ {[%clk 0:00:20.6]} 24... Qd6 {[%clk 0:01:06.9]}
25. Bxc3 {[%clk 0:00:20.6]} 25... Qxb4 {[%clk 0:00:58.9]} 26. Bxb4+ {[%clk
0:00:22.5]} 26... Kg8 {[%clk 0:00:59.2]} 27. Rab1 {[%clk 0:00:22.9]} 27... h6
{[%clk 0:00:56.2]} 28. Bc5 {[%clk 0:00:22.6]} 28... b6 {[%clk 0:00:52.6]} 29.
axb6 {[%clk 0:00:23.1]} 29... axb6 {[%clk 0:00:54.5]} 30. Rxb6 {[%clk
0:00:24.4]} 30... Kh7 {[%clk 0:00:52.3]} 31. Rb7 {[%clk 0:00:25.3]} 31... Bf4
{[%clk 0:00:42.4]} 32. Ra1 {[%clk 0:00:22.1]} 32... Rc8 {[%clk 0:00:29.3]} 33.
Rxd7 {[%clk 0:00:20.4]} 33... Rxc5 {[%clk 0:00:29.6]} 34. Rxf7 {[%clk
0:00:21.9]} 34... Be5 {[%clk 0:00:28]} 35. Re1 {[%clk 0:00:22.2]} 35... Bf6
{[%clk 0:00:24.3]} 36. d6 {[%clk 0:00:22.2]} 36... Rd5 {[%clk 0:00:24.6]} 37. d7
{[%clk 0:00:23]} 37... Rd8 {[%clk 0:00:24.9]} 38. Re8 {[%clk 0:00:14.8]} 38...
R8xd7 {[%clk 0:00:23.9]} 39. Rff8 {[%clk 0:00:15.6]} 39... Rd1+ {[%clk
0:00:20.3]} 40. Kh2 {[%clk 0:00:16.7]} 40... R7d5 {[%clk 0:00:21.5]} 41. g3
{[%clk 0:00:16.4]} 41... Kg6 {[%clk 0:00:21.7]} 42. Kg2 {[%clk 0:00:17]} 42...
Rf5 {[%clk 0:00:22.1]} 43. f4 {[%clk 0:00:16.5]} 43... Rfd5 {[%clk 0:00:22.1]}
44. Kf3 {[%clk 0:00:17.3]} 44... R5d3+ {[%clk 0:00:20.8]} 45. Kg4 {[%clk
0:00:18.4]} 45... h5+ {[%clk 0:00:21.7]} 46. Kh3 {[%clk 0:00:17.6]} 46... h4
{[%clk 0:00:21.2]} 47. Kg4 {[%clk 0:00:17.8]} 47... Rxg3# {[%clk 0:00:21]} 0-1